bitfinex-derivatives/quotes_ETHF0:USTF0_20250322
["timestamp","ask_amount","ask_price","bid_price","bid_amount"]
[1742667510093,1.30861748,1997.1,1997.0,1.00168]
[1742667510393,1.30861748,1997.1,1997.0,2.35538]
[1742667510580,2.31024748,1997.1,1997.0,2.35538]
[1742667510785,1.30861748,1997.1,1997.0,2.35538]
[1742667511592,2.31024748,1997.1,1997.0,2.35538]
[1742667512992,1.30861748,1997.1,1997.0,2.35538]
[1742667514195,2.31024748,1997.1,1997.0,2.35538]
[1742667514994,1.30861748,1997.1,1997.0,2.35538]
[1742667515794,2.31024748,1997.1,1997.0,2.35538]
[1742667518199,1.30861748,1997.1,1997.0,2.35538]
[1742667521193,2.31024748,1997.1,1997.0,2.35538]
[1742667523598,1.30861748,1997.1,1997.0,2.35538]
[1742667524893,2.31024748,1997.1,1997.0,2.35538]
[1742667527594,2.31024748,1997.1,1996.9,3.896]
[1742667527595,1.00168,1997.0,1996.9,4.2087]
[1742667527796,3.68338,1997.0,1996.9,4.2087]
[1742667527996,3.68338,1997.0,1996.9,2.2752]
[1742667534505,1.3457,1997.0,1996.9,5.4682]
[1742667534710,0.00751748,1997.1,1997.0,1.00168]
[1742667534909,0.00751748,1997.1,1997.0,2.31308]
[1742667536208,4.86978,1997.4,1997.3,1.00153]
[1742667536708,3.8683,1997.4,1997.3,1.00153]
[1742667536903,3.2078,1997.6,1997.5,1.0014]
[1742667537303,1.00134,1997.7,1997.5,3.199]
[1742667537504,1.00885748,1997.7,1997.6,1.3114]
[1742667537707,0.00751748,1997.7,1997.6,2.31274]
[1742667537909,0.00751748,1997.7,1997.6,2.95924]
[1742667543620,1.00884748,1997.7,1997.6,2.95924]
[1742667543814,0.00751748,1997.7,1997.6,2.95924]
[1742667550427,1.29571748,1997.7,1997.6,2.95924]
[1742667551323,7.48e-06,1997.7,1997.6,2.95924]
[1742667551717,1.2882,1998.1,1998.0,1.00118]
[1742667551914,1.2882,1998.1,1998.0,4.20118]
[1742667552523,1.2882,1998.1,1998.0,5.58578]
[1742667553930,0.00751748,1998.2,1998.1,1.00113]
[1742667554231,0.00751748,1998.2,1998.1,3.00573]
[1742667556216,7.48e-06,1998.2,1998.1,5.50573]
[1742667557326,1.3193,1998.5,1998.4,1.00098]
[1742667557527,1.30426504,1998.5,1998.4,4.20498]
[1742667557736,0.6747,1998.6,1998.5,1.00093]
[1742667557930,0.6747,1998.6,1998.5,1.67973]
[1742667558128,0.6747,1998.6,1998.5,3.02293]
[1742667559031,0.6747,1998.6,1998.5,6.23073]
[1742667559230,0.6706,1998.8,1998.7,1.00083]
[1742667559433,1.3399,1998.8,1998.7,1.00083]
[1742667559933,0.6693,1998.8,1998.7,2.31903]
[1742667560231,3.2078,1999.0,1998.9,1.00073]
[1742667560437,3.2078,1999.0,1998.9,4.20673]
[1742667560630,0.6948,1999.1,1999.0,1.00068]
[1742667560933,4.20828,1999.4,1999.3,1.00053]
[1742667561124,3.2078,1999.4,1999.2,1.00053]
[1742667561330,3.2078,1999.4,1999.3,1.00053]
[1742667562137,3.2078,1999.4,1999.3,5.54473]
[1742667562532,3.8442,1999.4,1999.3,5.54473]
[1742667563033,3.8442,1999.4,1999.3,1.00053]
[1742667563237,4.84468,1999.4,1999.3,1.00053]
[1742667563629,3.2078,1999.4,1999.3,1.00053]
[1742667563831,1.3082,1999.5,1999.4,1.00048]
[1742667564029,2.50053,2000.0,1999.4,1.00048]
[1742667564030,3.2078,1999.8,1999.7,1.00033]
[1742667564339,4.20787,2000.2,2000.1,1.00012]
[1742667564533,1.00018,2000.0,1999.9,1.3322]
[1742667564727,3.2078,2000.2,1999.9,1.00023]
[1742667564728,4.20789,2000.2,1999.9,1.00023]
[1742667564935,1.3082,2000.1,2000.0,1.00018]
[1742667565235,0.6364,2000.5,2000.4,0.99998]
[1742667565431,5.197,2000.5,2000.4,4.29898]
[1742667565630,6.19693,2000.5,2000.4,4.29898]
[1742667565941,6.19693,2000.5,2000.4,0.99998]
[1742667566333,5.197,2000.5,2000.4,0.99998]
[1742667567034,6.19693,2000.5,2000.4,0.99998]
[1742667567233,1.00002,2000.3,2000.2,0.00749869]
[1742667567538,5.197,2000.5,2000.2,0.00749869]
[1742667567743,1.9892,2000.5,2000.4,0.99998]
[1742667568639,2.98913,2000.5,2000.4,0.99998]
[1742667569030,2.98913,2000.5,2000.4,2.28598]
[1742667569737,1.9892,2000.5,2000.4,2.28598]
[1742667570127,3.2078,2000.8,2000.7,0.99983]
[1742667570327,3.8611,2001.4,2001.3,0.99953]
[1742667570539,3.8611,2001.4,2000.7,55.26229]
[1742667570540,3.8611,2001.4,2000.9,0.99968]
[1742667570730,2.49932,2000.9,2000.4,0.99995]
[1742667570932,1.00011,2000.2,1999.8,2.5007]
[1742667571132,1.00004,2000.3,1999.9,2.50057]
[1742667571439,3.2078,2000.2,1999.8,0.00749869]
[1742667571738,1.00023,1999.9,1999.8,0.00749869]
[1742667571938,1.05724528,1999.9,1999.8,0.00749869]
[1742667572339,1.00048,1999.4,1999.3,3.2078]
[1742667572540,1.00048,1999.4,1999.3,4.20829]
[1742667573041,0.05701528,1999.4,1999.3,4.20829]
[1742667573436,1.05749528,1999.4,1999.3,3.2078]
[1742667573635,1.05749528,1999.4,1999.3,4.5007]
[1742667574035,1.05749528,1999.4,1999.3,8.90523]
[1742667574036,0.04951659,1999.4,1999.3,8.90523]
[1742667574433,0.04951659,1999.4,1999.3,8.90623]
[1742667574637,1.04999659,1999.4,1999.3,7.9057]
[1742667575142,1.04999659,1999.4,1999.3,8.90623]
[1742667575539,1.04999659,1999.4,1999.3,5.50123]
[1742667576341,1.04999659,1999.4,1999.3,4.5007]
[1742667576541,1.04999659,1999.4,1999.3,5.50123]
[1742667576742,1.04999659,1999.4,1999.3,4.5007]
[1742667577538,0.04951659,1999.4,1999.3,5.50123]
[1742667582249,3.2078,2000.0,1999.3,9.50192]
[1742667582438,1.69031,2000.2,1999.8,3.2078]
[1742667582638,3.2078,2000.3,1999.9,1.3712]
[1742667582843,1.00012,2000.1,2000.0,3.401]
[1742667583350,1.00025,1999.9,1999.8,3.404]
[1742667583543,5.70789,2000.3,1999.6,6.6138]
[1742667583544,1.00033,1999.7,1999.6,6.6138]
[1742667583745,1.00033,1999.7,1999.6,3.406]
[1742667584147,1.00033,1999.7,1999.6,4.40638]
[1742667584445,3.2078,2000.4,1999.8,2.50059]
[1742667584751,1.00007,2000.3,2000.1,1.0001]
[1742667585050,1.00007,2000.3,2000.1,4.41111]
[1742667585442,1.00007,2000.3,2000.2,1.271]
[1742667586045,3.2078,2000.4,2000.2,2.27107]
[1742667586046,1.00001,2000.4,2000.2,2.27107]
[1742667586245,1.00002,2000.3,2000.2,1.271]
[1742667586947,1.00001,2000.4,2000.2,2.27107]
[1742667587250,1.00001,2000.4,2000.2,2.27104]
[1742667587451,1.00002,2000.3,2000.2,2.27104]
[1742667588254,1.00002,2000.3,2000.2,1.271]
[1742667588556,1.00002,2000.3,2000.2,2.27107]
[1742667590356,1.00002,2000.3,2000.2,1.271]
[1742667591355,2.27871,2000.4,2000.2,2.27107]
[1742667591545,1.00002,2000.3,2000.2,2.27107]
[1742667591846,2.27872,2000.3,2000.2,2.27107]
[1742667592552,2.27872,2000.3,2000.2,1.271]
[1742667592747,2.27872,2000.3,2000.1,7.61889]
[1742667592748,1.0003,1999.8,1999.7,3.2078]
[1742667592947,7.1747,2000.3,1999.6,1.2737]
[1742667592948,1.00035,1999.7,1999.6,1.2737]
[1742667593254,2.39065,1999.7,1999.6,1.2737]
[1742667593754,1.3903,1999.7,1999.6,2.27408]
[1742667593957,2.39063,1999.7,1999.6,2.27408]
[1742667594252,1.00038,1999.6,1999.5,7.6052]
[1742667594453,1.3903,1999.6,1999.5,7.60523]
[1742667594757,2.39068,1999.6,1999.5,6.6048]
[1742667594951,1.3903,1999.6,1999.5,7.60523]
[1742667595157,1.3903,1999.6,1999.5,8.87893]
[1742667595849,2.39068,1999.6,1999.5,8.87893]
[1742667596048,1.3903,1999.6,1999.5,8.87893]
[1742667596449,2.39068,1999.6,1999.5,4.6707]
[1742667596758,1.3903,1999.6,1999.5,4.6707]
[1742667596950,2.39068,1999.6,1999.5,4.6707]
[1742667597254,2.39068,1999.6,1999.5,5.67113]
[1742667597455,2.39068,1999.6,1999.5,4.6707]
[1742667597853,1.3903,1999.6,1999.5,5.67113]
[1742667598258,2.39068,1999.6,1999.5,5.67113]
[1742667598458,1.3903,1999.6,1999.5,5.67113]
[1742667600554,1.3903,1999.6,1999.5,8.87893]
[1742667601062,1.3903,1999.6,1999.5,5.67113]
[1742667602067,2.39068,1999.6,1999.5,4.6707]
[1742667602258,1.3903,1999.6,1999.3,7.58528]
[1742667602461,3.00416,1999.5,1999.4,1.00048]
[1742667602963,3.00416,1999.5,1999.4,2.38568]
[1742667603465,3.00416,1999.5,1999.4,1.3852]
[1742667603663,3.00416,1999.5,1999.2,0.00749869]
[1742667603664,1.00053,1999.3,1999.2,0.00749869]
[1742667604256,2.30923,1999.3,1999.2,0.00749869]
[1742667607557,1.00063,1999.1,1999.0,3.2078]
[1742667608664,2.50903869,1999.2,1998.7,4.37279]
[1742667608863,2.7485,1999.0,1998.8,0.00749869]
[1742667609059,1.00073,1998.9,1998.8,0.00749869]
[1742667609264,2.40103,1998.9,1998.8,0.00749869]
[1742667614166,1.4003,1998.9,1998.8,4.21607869]
[1742667614467,1.00065,1999.1,1999.0,1.00068]
[1742667614765,1.00068,1999.0,1998.9,2.3102]
[1742667615069,1.00068,1999.0,1998.9,1.3095]
[1742667615263,1.00068,1999.0,1998.9,2.31023]
[1742667616262,1.2782,1999.1,1999.0,1.00068]
[1742667616565,0.66449869,1999.2,1999.1,1.00063]
[1742667616566,0.00749869,1999.2,1999.1,1.00063]
[1742667616762,1.39379869,1999.2,1999.1,2.27833]
[1742667617067,2.39437869,1999.2,1999.1,1.2777]
[1742667617569,3.07727869,1999.2,1999.1,1.2777]
[1742667618073,1.00063,1999.1,1999.0,3.357]
[1742667618263,2.38693,1999.1,1999.0,3.357]
[1742667619365,1.00073,1998.9,1998.8,0.00749869]
[1742667619964,1.66393,1998.9,1998.8,0.00749869]
[1742667620164,1.66393,1998.9,1998.8,1.00827869]
[1742667621572,1.66393,1998.9,1998.8,0.00749869]
[1742667621967,1.66393,1998.9,1998.8,1.36649869]
[1742667622968,1.66393,1998.9,1998.8,0.00749869]
[1742667623373,1.00088,1998.6,1998.5,1.3234]
[1742667625177,1.00088,1998.6,1998.5,2.32433]
[1742667627881,1.00088,1998.6,1998.5,1.3234]
[1742667628280,1.00093,1998.5,1998.4,6.56029869]
[1742667628481,1.00093,1998.5,1998.4,7.85689869]
[1742667629074,1.64053,1998.5,1998.4,7.85689869]
[1742667630280,1.64053,1998.5,1998.4,0.00749869]
[1742667630880,3.00163,1998.5,1998.4,0.00749869]
[1742667632487,3.00163,1998.5,1998.4,1.35359869]
[1742667634885,3.00163,1998.5,1998.4,0.00749869]
[1742667635385,5.3337,1998.5,1997.9,4.5351]
[1742667635588,1.00118,1998.0,1997.9,0.6895]
[1742667636386,1.00118,1998.0,1997.9,1.3722]
[1742667636679,2.39598,1998.0,1997.9,1.3722]
[1742667636884,3.03108,1998.0,1997.9,1.3722]
[1742667642686,1.00123,1997.9,1997.8,0.00749869]
[1742667642886,2.27813,1997.9,1997.8,1.37589869]
[1742667643481,2.27813,1997.9,1997.8,0.00749869]
[1742667644981,5.60213,1997.9,1997.8,0.00749869]
[1742667657086,2.27813,1997.9,1997.8,0.00749869]
[1742667657303,2.27813,1997.9,1997.8,4.21657869]
[1742667657593,2.27813,1997.9,1997.8,4.89177869]
[1742667659900,0.00749869,1998.1,1998.0,1.00118]
[1742667660395,1.00862869,1998.1,1998.0,1.00118]
[1742667660699,1.00118,1998.0,1997.9,2.30143]
[1742667660902,2.36508,1998.0,1997.9,2.30143]
[1742667661202,2.36508,1998.0,1997.9,1.3002]
[1742667661393,1.00123,1997.9,1997.8,0.00749869]
[1742667661592,3.67543,1997.9,1997.8,0.00749869]
[1742667662304,3.67543,1997.9,1997.8,1.30769869]
[1742667666006,3.67543,1997.9,1997.8,2.30897869]
[1742667666192,3.01663,1997.9,1997.8,2.30897869]
[1742667666600,2.0154,1997.9,1997.8,2.30897869]
[1742667666901,1.66563869,1998.1,1998.0,1.00118]
[1742667667105,1.41049869,1998.1,1998.0,1.00118]
[1742667667302,0.00749869,1998.1,1998.0,1.00118]
[1742667667501,1.41049869,1998.1,1998.0,2.30408]
[1742667668101,2.41162869,1998.1,1998.0,2.30408]
[1742667668302,1.41049869,1998.1,1998.0,2.30408]
[1742667668604,2.41162869,1998.1,1998.0,2.30408]
[1742667673109,2.41162869,1998.1,1998.0,5.51188]
[1742667673307,1.41049869,1998.1,1998.0,5.51188]
[1742667675003,2.41162869,1998.1,1998.0,2.30408]
[1742667678507,1.41049869,1998.1,1998.0,2.30408]
[1742667680208,2.41162869,1998.1,1998.0,2.30408]
[1742667680707,1.41049869,1998.1,1998.0,5.51188]
[1742667681099,1.41049869,1998.1,1998.0,6.14948]
[1742667681296,2.41162869,1998.1,1998.0,6.14948]
[1742667688009,1.41049869,1998.1,1998.0,6.14948]
[1742667688902,2.41162869,1998.1,1998.0,6.14948]
[1742667689512,1.41049869,1998.1,1998.0,6.14948]
[1742667696917,1.41049869,1998.1,1998.0,6.8129678]
[1742667700511,1.41049869,1998.1,1998.0,6.14948]
[1742667702120,1.41049869,1998.1,1998.0,6.8129114]
[1742667703224,1.41049869,1998.1,1998.0,6.1753114]
[1742667712630,1.41049869,1998.1,1998.0,9.4223114]
[1742667714335,0.00749869,1998.1,1998.0,9.4223114]
[1742667716133,1.27479869,1998.1,1998.0,9.4223114]
[1742667716930,1.27479869,1998.1,1998.0,10.4827515]
[1742667720334,1.27479869,1998.1,1998.0,9.4223114]
[1742667727437,1.27479869,1998.1,1998.0,8.75888]
[1742667728940,2.27592869,1998.1,1998.0,4.20898]
[1742667729244,1.27479869,1998.1,1998.0,1.00118]
[1742667730447,2.27592869,1998.1,1998.0,1.00118]
[1742667731245,1.27479869,1998.1,1998.0,4.20898]
[1742667731744,1.27479869,1998.1,1998.0,5.60178]
[1742667734248,2.27592869,1998.1,1998.0,5.60178]
[1742667734443,2.27592869,1998.1,1998.0,4.20898]
[1742667740139,2.27592869,1998.1,1998.0,1.00118]
[1742667740747,2.27592869,1998.1,1998.0,2.36868]
[1742667741750,1.27479869,1998.1,1998.0,2.36868]
[1742667742148,1.27479869,1998.1,1998.0,3.05218]
[1742667750763,1.27479869,1998.1,1998.0,3.71528845]
[1742667762579,1.27479869,1998.1,1998.0,3.03178845]
[1742667763877,1.27479869,1998.1,1998.0,2.36868]
[1742667766076,2.27592869,1998.1,1998.0,1.3675]
[1742667766275,1.00123,1997.9,1997.8,1.00873869]
[1742667767082,3.07043,1997.9,1997.8,1.00873869]
[1742667768477,6.27823,1997.9,1997.8,0.00749869]
[1742667769679,3.07043,1997.9,1997.8,0.00749869]
[1742667769880,3.07043,1997.9,1997.8,1.00877869]
[1742667770482,2.0692,1997.9,1997.8,1.00877869]
[1742667771083,3.07043,1997.9,1997.8,1.00877869]
[1742667771483,3.07043,1997.9,1997.8,2.35067869]
[1742667771687,2.0692,1997.9,1997.8,2.35067869]
[1742667774187,3.07043,1997.9,1997.8,2.35067869]
[1742667775086,3.07043,1997.9,1997.8,1.00877869]
[1742667775787,3.07043,1997.9,1997.8,0.00749869]
[1742667781095,6.27243,1997.9,1997.8,0.00749869]
[1742667781990,6.27243,1997.9,1997.8,1.38559869]
[1742667784488,6.27243,1997.9,1997.8,0.00749869]
[1742667794799,6.27243,1997.9,1997.8,0.64019869]
[1742667795001,6.27243,1997.9,1997.8,2.02229869]
[1742667799705,6.27243,1997.9,1997.8,3.02357869]
[1742667800208,6.27243,1997.9,1997.8,2.02229869]
[1742667803709,5.60163,1997.9,1997.8,2.02229869]
[1742667804013,5.60163,1997.9,1997.8,3.02357869]
[1742667804210,5.60163,1997.9,1997.8,2.02229869]
[1742667807319,5.60163,1997.9,1997.8,1.38959869]
[1742667815622,5.60163,1997.9,1997.8,2.39087869]
[1742667815922,8.03433869,1998.1,1998.0,1.00118]
[1742667816421,4.85233869,1998.1,1998.0,1.00118]
[1742667816720,1.00118,1998.0,1997.9,1.6876]
[1742667817321,1.3355,1998.0,1997.9,6.2541]
[1742667817624,0.00749869,1998.1,1998.0,1.00118]
[1742667817820,0.00749869,1998.1,1998.0,6.14188]
[1742667818019,0.00749869,1998.1,1998.0,6.80527346]
[1742667818924,0.00749869,1998.1,1998.0,6.14188]
[1742667822121,7.25458594,1998.8,1998.6,1.00086]
[1742667822318,2.0442,1998.7,1998.6,1.00086]
[1742667823217,1.00089,1998.6,1998.5,1.00089]
[1742667823523,2.37229,1998.6,1998.5,1.00089]
[1742667828421,1.3714,1998.6,1998.5,1.00089]
[1742667828725,0.00749869,1998.8,1998.7,1.00083]
[1742667828923,1.39819869,1998.8,1998.7,1.00083]
[1742667829728,2.39897869,1998.8,1998.7,1.00083]
[1742667829927,1.39819869,1998.8,1998.6,1.00085]
[1742667830127,1.00088,1998.6,1998.5,1.00089]
[1742667830526,1.00093,1998.5,1998.4,4.18396]
[1742667831023,1.3073,1998.5,1998.4,4.18396]
[1742667831414,2.30823,1998.5,1998.4,4.18396]
[1742667831621,1.3073,1998.5,1998.4,4.18396]
[1742667832529,1.3073,1998.5,1998.4,1.00096]
[1742667833931,2.30823,1998.5,1998.4,1.00096]
[1742667834130,2.30823,1998.5,1998.3,1.00099]
[1742667834440,2.0523,1998.4,1998.1,1.00108]
[1742667834635,1.00108,1998.2,1998.1,4.20888]
[1742667835135,2.37588,1998.2,1998.1,4.20888]
[1742667835432,1.3748,1998.2,1998.1,4.20888]
[1742667835632,2.37588,1998.2,1998.1,4.20888]
[1742667837135,1.00113,1998.1,1998.0,1.00115]
[1742667837430,1.00113,1998.1,1997.8,1.00874869]
[1742667837431,2.0472,1998.1,1997.8,1.00874869]
[1742667837735,1.00123,1997.9,1997.8,0.00749869]
[1742667838334,1.67253,1997.9,1997.8,0.00749869]
[1742667839028,2.99813,1997.9,1997.8,0.00749869]
[1742667843435,1.9969,1997.9,1997.8,1.00877869]
[1742667843634,1.9969,1997.9,1997.8,1.69587869]
[1742667844033,2.99813,1997.9,1997.8,1.69587869]
[1742667844232,2.99813,1997.9,1997.8,2.96417869]
[1742667847238,2.99813,1997.9,1997.8,2.27707869]
[1742667847434,1.00133,1997.7,1997.6,3.2078]
[1742667848142,2.37363,1997.7,1997.6,4.5911]
[1742667848339,2.37363,1997.7,1997.6,3.2078]
[1742667848641,1.00143,1997.5,1997.4,2.38475]
[1742667849035,2.3737,1997.6,1997.5,1.00143]
[1742667849235,0.00749869,1997.6,1997.5,2.38473]
[1742667849644,0.00749869,1997.6,1997.5,5.59253]
[1742667850144,1.37979869,1997.6,1997.5,5.59253]
[1742667851035,0.00749869,1997.6,1997.5,5.59253]
[1742667852136,1.39159869,1997.6,1997.5,5.59253]
[1742667853548,2.39297869,1997.6,1997.5,5.59253]
[1742667853751,2.39297869,1997.6,1997.5,4.5911]
[1742667854350,2.39297869,1997.6,1997.5,5.59253]
[1742667855541,2.39297869,1997.6,1997.5,4.5911]
[1742667855747,2.39297869,1997.6,1997.5,1.3833]
[1742667856450,1.00148,1997.4,1997.3,0.00749869]
[1742667857147,2.39328,1997.4,1997.3,0.00749869]
[1742667858352,2.39328,1997.4,1997.3,1.00902869]
[1742667859047,2.39328,1997.4,1997.3,0.00749869]
[1742667859350,5.57928,1997.4,1997.3,0.00749869]
[1742667863656,1.00163,1997.1,1997.0,4.6009]
[1742667864355,3.05623,1997.1,1997.0,4.6009]
[1742667865455,3.05623,1997.1,1997.0,1.3931]
[1742667865755,3.05623,1997.1,1997.0,2.39478]
[1742667866054,3.05623,1997.1,1997.0,1.3931]
[1742667870555,1.00168,1997.0,1996.9,0.00749869]
[1742667870758,5.51748,1997.0,1996.9,0.00749869]
[1742667871050,1.00178,1996.8,1996.7,1.394]
[1742667871258,4.18778,1996.8,1996.7,1.394]
[1742667871759,5.51958,1996.8,1996.7,1.394]
[1742667871951,5.51958,1996.8,1996.7,2.39583]
[1742667874758,5.51958,1996.8,1996.7,1.394]
[1742667875654,5.51958,1996.8,1996.7,2.39583]
[1742667877151,3.186,1996.8,1996.7,2.39583]
[1742667877356,1.00176,1996.9,1996.8,1.00173]
[1742667877556,1.00176,1996.9,1996.8,4.90843]
[1742667878064,1.00171,1997.0,1996.9,1.0017]
[1742667878255,2.36241,1997.0,1996.9,1.7025]
[1742667878565,2.36241,1997.0,1996.9,0.7008]
[1742667878965,1.00173,1996.9,1996.8,3.9067]
[1742667879161,1.00178,1996.8,1996.7,1.00178]
[1742667879362,1.00182,1996.8,1996.7,1.00181]
[1742667879859,1.00183,1996.7,1996.6,5.54693869]
[1742667880061,2.34003,1996.7,1996.6,1.67793869]
[1742667880761,2.34003,1996.7,1996.6,0.00749869]
[1742667881768,2.34003,1996.7,1996.6,1.00937869]
[1742667882459,2.34003,1996.7,1996.6,0.00749869]
[1742667883863,5.53003,1996.7,1996.6,0.00749869]
[1742667884452,6.16853,1996.7,1996.6,0.00749869]
[1742667884657,1.00203,1996.3,1996.2,1.00204]
[1742667885458,1.00202,1996.4,1996.3,1.00199]
[1742667885658,1.00951869,1996.4,1996.3,1.00199]
[1742667885864,0.00749869,1996.4,1996.3,1.00199]
[1742667887269,1.00947869,1996.4,1996.3,1.00199]
[1742667889960,0.00749869,1996.4,1996.3,1.00199]
[1742667890760,0.00749869,1996.4,1996.3,2.27839]
[1742667892769,1.37869869,1996.4,1996.3,2.27839]
[1742667894278,2.38067869,1996.4,1996.3,2.27839]
[1742667894673,1.00947869,1996.4,1996.3,2.27839]
[1742667895178,0.00749869,1996.4,1996.3,2.27839]
[1742667895373,1.33139869,1996.4,1996.3,2.27839]
[1742667895574,0.00749869,1996.4,1996.3,2.27839]
[1742667897677,0.00749869,1996.4,1996.3,2.94128906]
[1742667898179,0.00749869,1996.4,1996.3,2.27839]
[1742667899377,0.00749869,1996.4,1996.3,2.94161321]
[1742667900474,0.00749869,1996.4,1996.3,2.27839]
[1742667900680,3.67117869,1996.4,1996.3,2.94179239]
[1742667901074,3.67117869,1996.4,1996.3,2.27839]
[1742667904485,2.66919869,1996.4,1996.3,2.27839]
[1742667905883,3.67117869,1996.4,1996.3,2.27839]
[1742667908786,3.67117869,1996.4,1996.3,2.94222873]
[1742667910390,3.67117869,1996.4,1996.3,2.27839]
[1742667911187,2.66919869,1996.4,1996.3,2.27839]
[1742667911387,3.67117869,1996.4,1996.3,2.27839]
[1742667912981,2.66919869,1996.4,1996.3,2.27839]
[1742667913588,2.66919869,1996.4,1996.3,2.94250927]
[1742667914390,3.67117869,1996.4,1996.3,2.94250927]
[1742667914691,3.67117869,1996.4,1996.3,2.27839]
[1742667915591,2.66919869,1996.4,1996.3,6.15035076]
[1742667917192,3.67117869,1996.4,1996.3,2.94255076]
[1742667917393,3.67117869,1996.4,1996.3,6.15035076]
[1742667921091,0.00749869,1996.4,1996.3,6.15035076]
[1742667921399,1.65078,1996.7,1996.6,1.00184]
[1742667922493,3.67158,1996.7,1996.6,1.00184]
[1742667923295,3.67158,1996.7,1996.6,2.32254]
[1742667936911,2.0208,1996.7,1996.6,2.32254]
[1742667942112,3.02263,1996.7,1996.6,2.32254]
[1742667942315,2.0208,1996.7,1996.6,2.32254]
[1742667942513,3.02263,1996.7,1996.6,2.32254]
[1742667943415,1.3584,1996.7,1996.6,2.32254]
[1742667944115,2.36023,1996.7,1996.6,2.32254]
[1742667944315,1.3584,1996.7,1996.6,2.32254]
[1742667947131,2.36023,1996.7,1996.6,2.32254]
[1742667949132,2.36023,1996.7,1996.6,5.53034]
[1742667949533,1.3584,1996.7,1996.6,5.53034]
[1742667949833,2.36023,1996.7,1996.6,5.53034]
[1742667950136,1.3584,1996.7,1996.6,5.53034]
[1742667951222,2.36023,1996.7,1996.6,5.53034]
[1742667951426,2.36023,1996.7,1996.6,2.32254]
[1742667952828,1.3584,1996.7,1996.6,2.32254]
[1742667954932,2.36023,1996.7,1996.6,2.32254]
[1742667956035,1.3584,1996.7,1996.6,2.32254]
[1742667957337,2.36023,1996.7,1996.6,2.32254]
[1742667959441,2.36023,1996.7,1996.6,1.00184]
[1742667959829,2.36023,1996.7,1996.6,2.30384]
[1742667966134,1.3584,1996.7,1996.6,2.30384]
[1742667966342,0.00749869,1996.8,1996.7,1.00183]
[1742667966641,0.00749869,1996.8,1996.7,5.61143]
[1742667967437,1.33089869,1996.8,1996.7,5.61143]
[1742667973439,1.33089869,1996.8,1996.7,2.40363]
[1742667973649,1.33089869,1996.8,1996.7,5.61143]
[1742667978255,2.33267869,1996.8,1996.7,5.61143]
[1742667978452,3.00037869,1996.8,1996.7,5.61143]
[1742667979354,3.00037869,1996.8,1996.7,2.40363]
[1742667979557,3.00037869,1996.8,1996.7,1.4018]
[1742667979757,1.00183,1996.7,1996.6,2.36136]
[1742667979958,2.26913,1996.7,1996.6,1.3595]
[1742667980357,1.00188,1996.6,1996.5,4.2097]
[1742667980658,2.91368,1996.6,1996.5,4.2097]
[1742667981756,2.91368,1996.6,1996.5,5.5692]
[1742667983360,2.91368,1996.6,1996.5,2.3614]
[1742667988264,2.91368,1996.6,1996.5,1.0019]
[1742667988952,2.91368,1996.6,1996.5,2.4025]
[1742667990066,2.91368,1996.6,1996.5,1.4006]
[1742667991161,2.91368,1996.6,1996.5,2.40253]
[1742667991863,2.91368,1996.6,1996.5,1.00193]
[1742667992656,3.61238,1996.6,1996.5,1.00193]
[1742667992855,3.61238,1996.6,1996.5,2.29233]
[1742667994865,3.61238,1996.6,1996.5,1.2904]
[1742667995365,1.00193,1996.5,1996.4,4.5104]
[1742667995566,1.00198,1996.4,1996.3,1.002]
[1742667995865,1.65388,1996.4,1996.3,2.3046]
[1742667998671,1.2941,1996.5,1996.4,1.00198]
[1742667998861,1.2941,1996.5,1996.4,6.15928]
[1742668001971,6.39729869,1996.8,1996.4,6.15928]
[1742668002173,2.32126,1996.7,1996.6,1.00184]
[1742668002966,1.3194,1996.7,1996.6,4.20964]
[1742668003366,1.00931869,1996.8,1996.7,1.00183]
[1742668003664,1.00931869,1996.8,1996.7,1.67603]
[1742668009774,0.00749869,1996.8,1996.7,1.67603]
[1742668013876,1.00927869,1996.8,1996.7,1.67603]
[1742668014072,1.00183,1996.7,1996.6,4.85413]
[1742668014381,1.65923,1996.7,1996.6,4.20963]
[1742668014580,2.35393,1996.7,1996.6,4.20963]
[1742668015280,2.35393,1996.7,1996.6,1.00183]
[1742668020881,3.75213,1996.7,1996.6,2.28163]
[1742668034594,2.0556,1996.7,1996.6,2.28163]
[1742668034795,1.3982,1996.7,1996.6,2.28163]
[1742668036804,1.3982,1996.7,1996.6,2.94540787]
[1742668037191,0.00749869,1996.8,1996.7,1.00183]
[1742668037391,1.41029869,1996.8,1996.7,3.07733]
[1742668040595,2.50458,1996.7,1996.4,3.2078]
[1742668040804,1.00193,1996.5,1996.4,3.2078]
[1742668041304,2.33433,1996.5,1996.4,3.2078]
[1742668045614,1.00198,1996.4,1996.3,5.48449]
[1742668045913,2.29518,1996.4,1996.3,5.48449]
[1742668047505,2.29518,1996.4,1996.3,5.48453]
[1742668049513,2.29518,1996.4,1996.3,1.2747]
[1742668049916,1.00203,1996.3,1996.2,1.00207]
[1742668050110,3.72443,1996.3,1996.2,2.36037]
[1742668050416,2.7224,1996.3,1996.2,2.36037]
[1742668051215,3.72443,1996.3,1996.2,2.36037]
[1742668058116,3.72443,1996.3,1996.2,1.3583]
[1742668059513,3.72443,1996.3,1996.2,2.36038]
[1742668061812,3.72443,1996.3,1996.2,1.3583]
[1742668063217,3.72443,1996.3,1996.2,2.36038]
[1742668063819,3.72443,1996.3,1996.2,1.3583]
[1742668064516,3.72443,1996.3,1996.2,2.36038]
[1742668064720,3.72443,1996.3,1996.2,1.3583]
[1742668069317,1.00208,1996.2,1996.1,0.00499912]
[1742668069512,5.54458,1996.2,1996.1,0.00499912]
[1742668070809,5.54458,1996.2,1995.7,3.181]
[1742668070810,2.50547,1996.0,1995.6,3.8441]
[1742668071013,2.37333,1995.9,1995.8,1.2884]
[1742668071216,3.74073,1995.9,1995.8,1.2884]